[Event "Coimbra Queima Fitas Open 2024"]
[Site "Coimbra"]
[Date "2024.04.28"]
[Round "6.18"]
[White "Santos, Ricardo Alexandre Lu"]
[Black "Ermida, Ricardo Carreira Das"]
[Result "1-0"]
[ECO "C79"]
[WhiteElo "1987"]
[BlackElo "1825"]
[Annotator "NA RC"]
[PlyCount "105"]
[EventDate "2024.04.23"]
[EventType "swiss"]
[EventCountry "POR"]
[SourceTitle "playchess.com"]
[Source "ChessBase"]
[SourceQuality "1"]
[TimeControl "5400+30"]

1. e4 {[%emt 1:01:15]} e5 {[%emt 0:59:30]} 2. Nf3 {[%emt 0:00:30]} Nc6 {[%emt 0:00:30]} 3. Bb5 {[%emt 0:00:30]} a6 {[%emt 0:00:30]} 4. Ba4 {[%emt 0:00:30]} Nf6 {[%emt 0:00:30]} 5. O-O {[%emt 0:00:30]} d6 {[%emt 0:00:30]} 6. Re1 {[%emt 0:00:30]} Bd7 {[%emt 0:00:30]} 7. c3 {[%emt 0:00:30]} g6 {[%emt 0:00:30]} 8. d4 {[%emt 0:00:30]} Bg7 {[%emt 0:00:30]} 9. Bg5 {[%emt 0:00:30]} h6 {[%emt 0:00:30]} 10. Bh4 {[%emt 0:00:30]} O-O {[%emt 0:00:30]} 11. Nbd2 {[%emt 0:00:30]} Re8 {[%emt 0:00:30]} 12. d5 {[%emt 0:00:30]} Ne7 {[%emt 0:00:30]} 13. Bxd7 {[%emt 0:00:30]} Nxd7 {[%emt 0:00:30]} 14. a4 {[%emt 0:00:30]} a5 {[%emt 0:00:30]} 15. Nc4 {[%emt 0:00:30]} g5 {[%emt 0:00:30]} 16. Bg3 {[%emt 0:00:30]} f5 {[%emt 0:00:30]} 17. exf5 {[%emt 0:00:30]} Nxf5 {[%emt 0:00:30]} 18. Nfd2 {[%emt 0:00:30]} Nxg3 {[%emt 0:00:30]} 19. hxg3 {[%emt 0:00:30]} Nf6 {[%emt 0:00:30]} 20. Ne4 {[%emt 0:00:30]} Nxe4 {[%emt 0:00:30]} 21. Rxe4 {[%emt 0:00:30]} Qd7 {[%emt 0:00:30]} 22. b4 {[%emt 0:00:30]} axb4 {[%emt 0:00:30]} 23. cxb4 {[%emt 0:00:30]} Ra7 {[%emt 0:00:30]} 24. a5 {[%emt 0:00:30]} Rea8 {[%emt 0:00:30]} 25. Rb1 {[%emt 0:00:30]} Qb5 {[%emt 0:00:30]} 26. Kh2 {[%emt 0:00:30]} Rf8 {[%emt 0:00:30]} 27. Kg1 {[%emt 0:00:30]} Rfa8 {[%emt 0:00:30]} 28. Na3 {[%emt 0:00:30]} Qd7 {[%emt 0:00:30]} 29. Qd3 {[%emt 0:05:40]} Rf8 {[%emt 0:15:53]} 30. Rc1 {[%emt 0:02:31]} c6 {[%emt 0:02:45]} 31. f3 {[%emt 0:02:37]} Qf7 {[%emt 0:05:26]} 32. Rd1 {[%emt 0:00:35]} Rd8 {[%emt 0:01:52]} 33. Nc4 {[%emt 0:01:29]} cxd5 {[%emt 0:01:23]} 34. Qxd5 {[%emt 0:00:10]} Qxd5 {[%emt 0:00:07]} 35. Rxd5 {[%emt 0:00:04]} Raa8 {[%emt 0:01:47]} 36. Rxd6 {[%emt 0:00:40]} Rac8 {[%emt 0:01:12]} 37. Rxd8+ {[%emt 0:06:17]} Rxd8 {[%emt 0:00:07]} 38. Nxe5 {[%emt 0:00:59]} Rd5 {[%emt 0:01:02]} 39. f4 {[%emt 0:00:30]} Rb5 {[%emt 0:01:13]} 40. Kf2 {[%emt 0:00:46]} Bf8 {[%emt 0:00:17]} 41. Nd3 {[%emt 0:00:26]} Rd5 {[%emt 0:00:53]} 42. Ke3 {[%emt 0:00:25]} Rd7 {[%emt 0:00:31]} 43. Re5 {[%emt 0:02:07]} Bg7 {[%emt 0:00:29]} 44. Rb5 {[%emt 0:00:19]} Bc3 {[%emt 0:00:28]} 45. fxg5 {[%emt 0:02:46]} Re7+ {[%emt 0:00:11]} 46. Kf3 {[%emt 0:00:59]} hxg5 {[%emt 0:00:50]} 47. Rxg5+ {[%emt 0:00:08]} Kf8 {[%emt 0:00:21]} 48. Rb5 {[%emt 0:00:10]} Bd2 {[%emt 0:00:19]} 49. Nc5 {[%emt 0:00:34]} Re3+ {[%emt 0:00:41]} 50. Kg4 {[%emt 0:01:52]} Be1 {[%emt 0:00:15]} 51. Rxb7 {[%emt 0:00:44]} Rxg3+ {[%emt 0:00:10]} 52. Kf5 {[%emt 0:00:08]} Rc3 {[%emt 0:00:40]} 53. a6 {[%emt 0:00:30]} 1-0

[Event "Coimbra Queima Fitas Open 2024"]
[Site "Coimbra"]
[Date "2024.04.28"]
[Round "7.1"]
[White "Sousa, Andre Ventura"]
[Black "Veiga, Jose Francisco R P N"]
[Result "1-0"]
[ECO "C54"]
[WhiteElo "2426"]
[BlackElo "2378"]
[Annotator "TA"]
[PlyCount "59"]
[EventDate "2024.04.23"]
[EventType "swiss"]
[EventCountry "POR"]
[SourceTitle "playchess.com"]
[Source "ChessBase"]
[SourceQuality "1"]
[TimeControl "5400+30"]

{[%evp 9,58,0,13,-41,-35,-54,-48,-35,-34,-51,-62,-68,54,45,59,70,114,112,103,92,140,150,142,111,107,88,75,35,129,126,243,237,235,227,233,246,274,235,275,273,412,412,424,427,1388,366,29990,29991,29991,29989,29999]} 1. e4 {[%emt 0:00:02]} e5 {[%emt 0:04:59]} 2. Nf3 {[%emt 0:00:05]} Nc6 {[%emt 0:00:11]} 3. Bc4 {[%emt 0:00:03]} Bc5 {[%emt 0:00:28]} 4. c3 {[%emt 0:00:04]} Nf6 {[%emt 0:00:09]} 5. d4 {[%emt 0:00:03]} exd4 {[%emt 0:00:23]} 6. b4 {[%emt 0:00:03]} (6. cxd4 $11 Bb4+ 7. Bd2) 6... Bb6 $15 {[%emt 0:04:04]} 7. e5 {[%emt 0:00:52]} d5 {[%emt 0:02:30]} 8. exf6 {[%emt 0:00:13] Black is slightly better.} dxc4 {[%emt 0:00:15]} 9. Qe2+ {[%emt 0:00:06]} Be6 {[%emt 0:01:20] [#] Strongly threatening ...0-0.} 10. b5 $1 {[%emt 0:01:51][%cal Bb4b5,Bb5c6][%mdl 32]} O-O {[%emt 0:06:14]} 11. bxc6 $14 {[%emt 0:03:47]} (11. fxg7 $2 Re8 12. bxc6 Bg4 $19) 11... Re8 {[%emt 0:10:42]} 12. O-O $1 d3 {[%emt 0:13:47]} (12... gxf6 $2 13. Nxd4 (13. cxb7 d3 $18) 13... Bd5 14. Be3 $18) 13. Qe4 {[%emt 0:14:01]} Bd5 {[%emt 0:01:28]} (13... gxf6 $2 14. cxb7 Rb8 15. Nbd2 $18) 14. Qf5 {[%emt 0:08:21] Threatens to win with Qg5.} g6 {[%emt 0:13:05]} (14... gxf6 $2 15. Bh6 Be6 16. Qf4 $18) (14... bxc6 $142 15. fxg7 Qc8) 15. Qg5 $16 {[%emt 0:08:01]} bxc6 {[%emt 0:13:25][%cal Oh7h6]} 16. Qh4 {[%emt 0:05:43]} h5 {[%emt 0:08:02]} 17. Nbd2 {[%emt 0:21:36] aiming for Ba3.} Re6 {[%emt 0:01:19]} 18. Ba3 {[%emt 0:00:31]} (18. Nxc4 Re4 19. Bf4 Rxc4 $11 (19... Bxc4 20. Nd2 $16)) 18... Rxf6 {[%emt 0:08:20]} (18... Qxf6 $14 19. Qxf6 (19. Nxc4 $2 Qxh4 20. Nxh4 Bxc4 $19) 19... Rxf6) 19. Rae1 {[%emt 0:01:53] Hoping for Be7.} Rf5 {[%emt 0:01:39]} (19... Re6 $16 {might work better.}) 20. Be7 $18 {[%emt 0:00:50]} (20. Nxc4 Qxh4 (20... Bxf3 21. Qxd8+ Rxd8 22. gxf3 $16) 21. Nxh4 Bxc4 22. Nxf5 gxf5 $11) 20... Qc8 {[%emt 0:05:55]} 21. Nd4 {[%emt 0:03:36]} Bxd4 {[%emt 0:01:46]} 22. Qxd4 {[%emt 0:00:03]} (22. cxd4 c3 23. Ne4 c2 $17) 22... Qa6 {[%emt 0:00:22]} 23. a3 {[%emt 0:04:36]} Re8 {[%emt 0:00:58]} 24. Bc5 {[%emt 0:02:11]} Re6 (24... Qc8 $142 25. Bxa7 (25. Nxc4 Rxe1 26. Rxe1 Bxg2 $18) 25... Rd8) 25. Rxe6 (25. Bxa7 c5 26. Bxc5 Kh7 $18) 25... fxe6 26. Rb1 {Intending Rb8+ and mate.} (26. Bxa7 Qxa3 27. Bc5 (27. Nxc4 Bxc4 28. Qxc4 Qxa7 $14) 27... Qa5 $18) 26... e5 (26... Qc8 $142 27. Bxa7 (27. Nxc4 Bxc4 28. Qxc4 Qd7 $18) 27... e5) 27. Qh4 $2 (27. Rb8+ Kh7 28. Qh4) 27... Qa5 $2 (27... Qc8 $18 28. Bxa7 (28. Nxc4 Rf4 $18) 28... Rf8) 28. Rb8+ {White mates.} (28. Nxc4 $2 Qxc5 29. Ne3 Rf8 $19) 28... Kh7 {[#]} 29. Qd8 $1 {[%csl Gb8][%cal Rd8h8]} Qxc3 (29... g5 30. Bb4) 30. Qh8# {Weighted Error Value: White=0.26 (precise) /Black=0.50.  Mistake:       	White=1     	Black=7      Inaccurate:     	White=1     	Black=1      OK:         	White=11    	Black=9      Best:        	White=1     	Black=2      Strong:       	White=2     	---} 1-0

[Event "Coimbra Queima Fitas Open 2024"]
[Site "Coimbra"]
[Date "2024.04.28"]
[Round "7.2"]
[White "Farias, David Nuno Moita Est"]
[Black "Martins, Bruno Andre Leite"]
[Result "1-0"]
[ECO "B00"]
[WhiteElo "2194"]
[BlackElo "2360"]
[Annotator "RC"]
[PlyCount "75"]
[EventDate "2024.04.23"]
[EventType "swiss"]
[EventCountry "POR"]
[SourceTitle "playchess.com"]
[Source "ChessBase"]
[SourceQuality "1"]
[TimeControl "5400+30"]

1. e4 {[%emt 0:00:03]} d6 {[%emt 0:05:34]} 2. d4 {[%emt 0:00:48]} e5 {[%emt 0:00:59]} 3. Nf3 {[%emt 0:03:34]} Nc6 {[%emt 0:00:53]} 4. Bb5 {[%emt 0:05:29]} Bd7 {[%emt 0:00:59]} 5. O-O {[%emt 0:02:17]} exd4 {[%emt 0:06:52]} 6. Bxc6 {[%emt 0:03:29]} bxc6 {[%emt 0:09:35]} 7. Qxd4 {[%emt 0:03:38]} Ne7 {[%emt 0:05:58]} 8. b3 {[%emt 0:11:22]} Ng6 {[%emt 0:07:51]} 9. Bb2 {[%emt 0:02:48]} Nf4 {[%emt 0:02:33]} 10. Qe3 {[%emt 0:02:50]} Ne6 {[%emt 0:00:32]} 11. Nd4 {[%emt 0:06:19]} f6 {[%emt 0:09:20]} 12. f4 {[%emt 0:08:51]} Be7 {[%emt 0:01:00]} 13. f5 {[%emt 0:03:23]} Ng5 {[%emt 0:03:29]} 14. c4 {[%emt 0:02:59]} O-O {[%emt 0:01:10]} 15. Nc3 {[%emt 0:01:58]} Re8 {[%emt 0:00:43]} 16. h4 {[%emt 0:01:27]} Nf7 {[%emt 0:00:52]} 17. Rad1 {[%emt 0:10:10]} a5 {[%emt 0:02:52]} 18. Qg3 {[%emt 0:03:22]} Bf8 {[%emt 0:03:38]} 19. Bc1 {[%emt 0:11:18]} a4 {[%emt 0:04:09]} 20. h5 {[%emt 0:03:49]} axb3 {[%emt 0:00:29]} 21. axb3 {[%emt 0:00:05]} h6 {[%emt 0:05:32]} 22. Qg6 {[%emt 0:03:24]} Ne5 {[%emt 0:01:39]} 23. Qg3 {[%emt 0:00:05]} Nf7 {[%emt 0:02:18]} 24. Bf4 {[%emt 0:04:19]} Qb8 {[%emt 0:00:47]} 25. Ra1 {[%emt 0:00:45]} Rxa1 {[%emt 0:03:56]} 26. Rxa1 {[%emt 0:00:02]} c5 {[%emt 0:00:23]} 27. Nf3 {[%emt 0:02:51]} Qxb3 {[%emt 0:05:21]} 28. Nd2 {[%emt 0:01:15]} Qb7 {[%emt 0:02:48]} 29. Rb1 {[%emt 0:00:42]} Qa7 {[%emt 0:03:27]} 30. Nd5 {[%emt 0:00:38]} Ng5 {[%emt 0:00:12]} 31. Bxg5 {[%emt 0:00:49]} hxg5 {[%emt 0:00:13]} 32. h6 {[%emt 0:01:04]} c6 {[%emt 0:01:47]} 33. hxg7 {[%emt 0:00:31]} Kxg7 {[%emt 0:01:41]} 34. Nxf6 {[%emt 0:00:32]} Kxf6 {[%emt 0:00:12]} 35. Nf3 {[%emt 0:00:03]} Bc8 {[%emt 0:06:26]} 36. Qxg5+ {[%emt 0:00:15]} Kf7 {[%emt 0:00:01]} 37. Qg6+ {[%emt 0:00:21]} Ke7 {[%emt 0:00:01]} 38. Qh7+ {[%emt 0:00:06]} 1-0

[Event "Coimbra Queima Fitas Open 2024"]
[Site "Coimbra"]
[Date "2024.04.28"]
[Round "7.3"]
[White "Martin Duque, Jesus"]
[Black "Simoes, Miguel Caldeira"]
[Result "1-0"]
[ECO "A05"]
[WhiteElo "2336"]
[BlackElo "2084"]
[Annotator "TA"]
[PlyCount "199"]
[EventDate "2024.04.23"]
[EventType "swiss"]
[EventCountry "POR"]
[SourceTitle "playchess.com"]
[Source "ChessBase"]
[SourceQuality "1"]
[TimeControl "5400+30"]

{[%evp 51,199,192,188,206,257,259,262,261,310,317,304,303,309,309,425,265,264,271,272,271,276,270,284,284,284,284,320,302,417,417,410,373,385,290,445,419,524,568,510,499,829,691,854,854,854,645,1043,726,1252,1273,1252,1252,1252,1125,1118,1118,1047,1067,872,1062,1062,887,880,880,956,956,887,872,872,872,858,858,787,780,851,845,11822,851,716,622,600,402,12845,5278,29942,29944,29949,29951,29952,29953,29955,29954,29955,29955,29960,29962,29968,29968,29969,29970,29969,29970,29972,29973,29972,29973,29972,29974,29973,29974,29976,29977,29977,29978,29978,29979,29979,29980,29980,29979,29981,4133,29982,4137,29983,29984,29987,29986,29988,29987,29989,29990,29990,29990,29991,29990,29991,29992,29992,29992,29993,29994,29994,29995,29995,29996,29996,29997,29997,4153]} 1. Nf3 {[%emt 0:10:47]} Nf6 {[%emt 0:00:51]} 2. b3 {[%emt 0:00:03]} g6 {[%emt 0:01:19]} 3. Bb2 {[%emt 0:00:12]} Bg7 {[%emt 0:01:15]} 4. g3 {[%emt 0:00:16]} b6 {[%emt 0:02:01]} 5. Bg2 {[%emt 0:00:08]} Bb7 {[%emt 0:00:11]} 6. O-O {[%emt 0:00:14]} O-O {[%emt 0:00:19]} 7. c4 {[%emt 0:00:29]} d5 {[%emt 0:03:11]} 8. e3 {[%emt 0:02:01]} c5 {[%emt 0:05:57]} 9. Qe2 {[%emt 0:02:26] A30: Symmetrical English: Double Fianchetto and Hedgehog.} Nbd7 {[%emt 0:06:36]} 10. d4 {[%emt 0:03:03]} Qc7 {[%emt 0:03:39]} 11. Na3 {[%emt 0:03:29]} Rac8 {[%emt 0:01:33]} 12. Rfd1 $146 {[%emt 0:00:17]} ({Predecessor:} 12. Rac1 Qb8 13. Rfd1 Rfd8 14. Bh3 e6 15. cxd5 Bxd5 16. Bg2 cxd4 17. Bxd4 Rxc1 18. Rxc1 {0-1 Bemmelen Van,U (2145)-Nabaty,T (2631) Olympiad-44 Chennai 2022 (1.2)}) 12... Rfe8 {[%emt 0:01:57]} 13. dxc5 {[%emt 0:08:22]} bxc5 {[%emt 0:03:10]} 14. cxd5 {[%emt 0:13:00]} Bxd5 {[%emt 0:01:16]} 15. Nc4 {[%emt 0:00:07]} Nb6 {[%emt 0:03:07]} 16. Nce5 {[%emt 0:06:09]} Ne4 {[%emt 0:01:48]} 17. Rxd5 {[%emt 0:07:49]} Nxd5 {[%emt 0:00:25]} 18. Qc4 {[%emt 0:00:29]} Nef6 {[%emt 0:07:37]} 19. e4 {[%emt 0:04:34]} e6 {[%emt 0:09:39]} 20. exd5 {[%emt 0:01:52]} exd5 {[%emt 0:00:24]} 21. Qc2 {[%emt 0:00:09]} Ne4 {[%emt 0:04:02]} 22. Nd3 {[%emt 0:02:09]} c4 {[%emt 0:01:05]} 23. Bxg7 {[%emt 0:01:32]} cxd3 {[%emt 0:00:50]} 24. Qxc7 {[%emt 0:01:31]} Rxc7 {[%emt 0:00:04]} 25. Bh6 {[%emt 0:00:15]} g5 {[%emt 0:14:46]} 26. Nxg5 {[%emt 0:01:22]} (26. Bxg5 Nxg5 27. Rd1 Rc2 28. Rxd3 (28. Nxg5 $2 d2 $19) 28... Rc1+ 29. Bf1 Nxf3+ 30. Rxf3 Ree1 $19) 26... Rc6 {[%emt 0:00:53]} 27. Nxe4 {[%emt 0:01:36]} Rxh6 {[%emt 0:00:14]} 28. Nd2 {[%emt 0:02:06]} Re2 {[%emt 0:00:50]} 29. Rd1 {[%emt 0:02:53]} Rc6 {[%emt 0:01:24]} 30. Bxd5 {[%emt 0:01:20]} Rc2 {[%emt 0:00:24]} 31. Ne4 {[%emt 0:03:25]} Kg7 {[%emt 0:00:34]} 32. g4 {[%emt 0:00:27]} (32. Rxd3 f5) 32... h5 {[%emt 0:01:10]} 33. h3 {[%emt 0:00:05]} ({Not} 33. gxh5 f5 34. Ng3 Rxf2 $18) (33. Rxd3 hxg4 34. Ba8 f5 35. Rd7+ Kg6 36. Rd6+ Kg7 $16) 33... hxg4 {[%emt 0:01:31]} 34. hxg4 {[%emt 0:00:01]} (34. Rxd3 f5 35. Ng3 Rxf2 $11) 34... d2 {[%emt 0:01:49]} 35. Kf1 {[%emt 0:00:40]} Re1+ {[%emt 0:00:23]} 36. Rxe1 {[%emt 0:00:04]} dxe1=Q+ {[%emt 0:00:36]} 37. Kxe1 {[%emt 0:00:07]} Rxa2 {[%emt 0:00:02]} 38. Kf1 {[%emt 0:02:12]} Kg6 {[%emt 0:00:43]} 39. Kg2 {[%emt 0:00:26]} f5 {[%emt 0:00:15]} 40. gxf5+ {[%emt 0:00:40]} Kxf5 {[%emt 0:00:02]} 41. Nc3 {[%emt 0:01:39]} Ra1 {[%emt 0:02:25]} 42. Bc4 {[%emt 0:01:18]} a5 {[%emt 0:00:59]} (42... Kg4 $142 43. Ne2 Kf5) 43. Kf3 $18 {[%emt 0:00:31]} Rc1 {[%emt 0:01:11]} 44. Ne2 {[%emt 0:00:24]} Rd1 {[%emt 0:00:08]} 45. Ke3 {[%emt 0:00:21]} Ra1 {[%emt 0:01:52]} (45... Rd8 $142 46. Nc3 Rh8 47. Bd3+ Ke6) 46. Bd3+ $18 {[%emt 0:00:14]} Kf6 {[%emt 0:00:13]} 47. Nc3 {[%emt 0:01:14]} Rh1 {[%emt 0:00:58]} 48. Kd4 {[%emt 0:00:35]} Kg5 {[%emt 0:00:36]} 49. Be4 {[%emt 0:01:11]} Rh2 {[%emt 0:00:44]} 50. f3 {[%emt 0:00:16]} Rb2 {[%emt 0:02:22]} 51. Kc4 {[%emt 0:00:06]} Kf4 {[%emt 0:00:22]} 52. Na4 {[%emt 0:00:10]} Ra2 {[%emt 0:00:15]} 53. Kb5 {[%emt 0:00:52]} Ra3 {[%emt 0:00:03]} 54. Nc5 {[%emt 0:00:15]} ({And not} 54. Kxa5 Rxb3 55. Nc5 Rxf3 $11) 54... Ke3 {[%emt 0:00:21]} 55. Kc4 {[%emt 0:00:53]} Ra2 {[%emt 0:03:02]} 56. Bc6 {[%emt 0:00:40]} Rc2+ {[%emt 0:01:25]} 57. Kb5 {[%emt 0:02:13]} Rc3 {[%emt 0:00:27]} 58. Bd5 {[%emt 0:00:52]} Kd4 {[%emt 0:00:59]} 59. Bc4 {[%emt 0:00:04]} Rxf3 {[%emt 0:00:22]} 60. Ne6+ {[%emt 0:00:24]} Kc3 {[%emt 0:01:19]} 61. Kxa5 {[%emt 0:00:02]} Rf5+ {[%emt 0:03:55] [#]} 62. Ka4 $1 {[%emt 0:00:25]} Rf2 {[%emt 0:04:30]} 63. Nc7 {[%emt 0:01:07]} Ra2+ {[%emt 0:01:37]} 64. Kb5 {[%emt 0:00:03]} Rb2 {[%emt 0:00:58]} 65. Nd5+ {[%emt 0:00:15]} Kd4 {[%emt 0:00:33]} 66. Kb4 {[%emt 0:00:09]} Rb1 {[%emt 0:00:38]} (66... Rf2 $142 67. Nc7 Rf5 68. Nb5+ Ke3) 67. Nc7 {[%emt 0:00:10]} (67. Ne7 $142 Rh1 68. Nc6+ Ke4 69. Kb5) 67... Ke3 {[%emt 0:00:36]} 68. Kc5 {[%emt 0:00:15]} Kd2 {[%emt 0:01:36]} 69. b4 {[%emt 0:00:09]} Rh1 {[%emt 0:00:35]} 70. b5 {[%emt 0:00:15]} Rh5+ {[%emt 0:00:13]} 71. Nd5 Rh8 {[%emt 0:00:07]} 72. b6 {[%emt 0:00:17]} Kc2 {[%emt 0:00:13]} 73. b7 {[%emt 0:00:14]} Kb2 {[%emt 0:00:08]} 74. Nb6 {[%emt 0:00:26]} Rb8 {[%emt 0:00:23]} 75. Bd5 {[%emt 0:00:02]} Kc3 {[%emt 0:00:11]} 76. Nd7 {[%emt 0:00:09]} Rxb7 {[%emt 0:00:27]} 77. Bxb7 {[%emt 0:00:02]} Kd3 {[%emt 0:00:05]} 78. Nf6 {[%emt 0:00:50]} Kc3 {[%emt 0:00:28]} 79. Be4 {[%emt 0:00:11]} Kb3 {[%emt 0:00:45]} 80. Nd5 {[%emt 0:00:15]} Kb2 {[%emt 0:00:03]} 81. Kb4 {[%emt 0:00:10]} Ka2 {[%emt 0:00:11]} 82. Kc3 {[%emt 0:00:12]} Ka1 {[%emt 0:00:06]} 83. Nb6 {[%emt 0:01:47]} Ka2 {[%emt 0:00:21]} 84. Na4 {[%emt 0:00:14]} Ka3 {[%emt 0:00:25]} 85. Nc5 {[%emt 0:00:13]} Ka2 {[%emt 0:00:02]} 86. Nb3 {[%emt 0:00:24]} Ka3 {[%emt 0:00:01]} 87. Bb1 {[%emt 0:00:22]} Ka4 {[%emt 0:00:02]} 88. Nd4 {[%emt 0:00:24]} Ka3 {[%emt 0:00:03]} 89. Nb5+ {[%emt 0:00:11]} Ka4 {[%emt 0:00:02]} 90. Kc4 {[%emt 0:00:09]} Ka5 {[%emt 0:00:01]} 91. Kc5 {[%emt 0:00:08]} Ka4 {[%emt 0:00:09]} 92. Bc2+ {[%emt 0:00:06]} Ka5 {[%emt 0:00:01]} 93. Bb3 {[%emt 0:00:08]} Ka6 {[%emt 0:00:02]} 94. Nd6 {[%emt 0:00:09]} Ka5 {[%emt 0:00:03]} 95. Nb7+ {[%emt 0:00:06]} Ka6 {[%emt 0:00:04]} 96. Kc6 {[%emt 0:00:06]} Ka7 {[%emt 0:00:02]} 97. Kc7 {[%emt 0:00:43]} Ka6 {[%emt 0:00:02]} 98. Bc4+ {[%emt 0:00:08]} Ka7 {[%emt 0:00:01]} 99. Nd6 {[%emt 0:01:20]} Ka8 {[%emt 0:00:02]} 100. Bb5 {[%emt 0:00:10]} 1-0

[Event "Coimbra Queima Fitas Open 2024"]
[Site "Coimbra"]
[Date "2024.04.28"]
[Round "7.4"]
[White "Monteiro, Paulo Alexandre Gome"]
[Black "Grimm, Daniel"]
[Result "1/2-1/2"]
[ECO "A41"]
[WhiteElo "2122"]
[BlackElo "2296"]
[Annotator "TA"]
[PlyCount "90"]
[EventDate "2024.04.23"]
[EventType "swiss"]
[EventCountry "POR"]
[SourceTitle "playchess.com"]
[Source "ChessBase"]
[SourceQuality "1"]
[TimeControl "5400+30"]

{[%evp 9,90,0,10,19,11,0,-2,-9,0,-4,0,0,0,0,60,14,48,56,83,78,95,39,41,32,137,47,156,139,151,129,150,129,188,190,365,184,185,52,134,29,21,18,297,270,327,329,375,0,313,326,836,757,805,775,770,755,866,737,727,689,842,827,808,655,668,652,730,715,704,683,665,484,641,330,356,341,316,110,111,112,112,108,108]} 1. d4 {[%emt 0:00:09]} d6 {[%emt 0:00:34]} 2. c4 {[%emt 0:01:02]} e5 {[%emt 0:00:39]} 3. Nf3 {[%emt 0:00:58]} e4 {[%emt 0:06:10]} 4. Nfd2 {[%emt 0:00:55]} f5 {[%emt 0:00:26]} 5. e3 {[%emt 0:01:38]} Nf6 {[%emt 0:02:04]} 6. Be2 {[%emt 0:04:21]} c5 {[%emt 0:04:33]} 7. b4 {[%emt 0:10:05]} cxd4 {[%emt 0:11:55]} 8. exd4 {[%emt 0:00:17] The position is equal.} g6 {[%emt 0:04:35]} 9. O-O {[%emt 0:10:36]} Bg7 {[%emt 0:00:31]} 10. Nb3 {[%emt 0:02:35]} O-O {[%emt 0:01:55]} 11. Nc3 {[%emt 0:02:03]} Kh8 {[%emt 0:05:24]} (11... Na6 $11) 12. a4 {[%emt 0:04:24]} (12. Bf4 $14) 12... d5 {[%emt 0:10:20]} 13. c5 {[%emt 0:03:29]} Nc6 {[%emt 0:00:23]} 14. b5 {[%emt 0:03:16]} Ne7 {[%emt 0:01:46]} 15. a5 {[%emt 0:03:30]} (15. Bf4 $16) 15... a6 $14 {[%emt 0:02:20]} 16. Bf4 {[%emt 0:12:32][%cal Oc5c6]} h6 {[%emt 0:02:10]} (16... axb5 $14 17. Nxb5 Bd7) 17. h4 {[%emt 0:04:25] White is more active.} ({White should play} 17. c6 $16) 17... g5 {[%emt 0:01:41]} 18. hxg5 $16 {[%emt 0:00:23]} hxg5 {[%emt 0:00:03]} 19. Bxg5 {[%emt 0:01:27]} Be6 {[%emt 0:09:37]} 20. f4 {[%emt 0:03:34][%cal Oc5c6] Hoping for c6!} exf3 {[%emt 0:03:34]} (20... Nh7 $16) 21. Rxf3 $18 {[%emt 0:02:34]} Ne4 $2 {[%emt 0:01:14]} (21... Kg8 22. c6 bxc6) 22. Rh3+ {[%emt 0:04:57]} (22. Nxe4 $142 fxe4 23. Rxf8+ Qxf8 24. c6 bxc6 25. b6 (25. bxa6 Nf5 $14) (25. Nc5 Bc8 $14)) 22... Kg8 {[%emt 0:00:14]} 23. Bh4 {[%emt 0:00:30]} ({Better is} 23. Nxe4 $18 fxe4 24. Bg4) 23... Qd7 {[%emt 0:01:46]} ({Black should try} 23... axb5 $1 $14 24. Bxb5 (24. Nxb5 Qd7 $14) 24... f4) 24. Rc1 {[%emt 0:10:49]} (24. Nxe4 $16 dxe4 25. c6 bxc6 26. bxc6 (26. bxa6 f4 $17) 26... Nxc6 27. Bf2) 24... f4 $11 {[%emt 0:01:58]} 25. Bxe7 {[%emt 0:00:55]} Bxh3 $4 {[%emt 0:01:13][%mdl 8192]} (25... Qxe7 $11 26. Bg4 Rad8) 26. Bxf8 $18 {[%emt 0:00:52]} Rxf8 {[%emt 0:00:58]} 27. Nxe4 {[%emt 0:00:49]} (27. gxh3 $2 Qxh3 28. Nxe4 (28. Nxd5 $2 Qg3+ 29. Kh1 Nf2#) 28... f3 $19) (27. bxa6 Ng5 $16) 27... dxe4 {[%emt 0:01:29]} 28. gxh3 $2 {[%emt 0:00:59]} (28. bxa6 f3 29. Bxf3 (29. gxf3 $2 Bh6 $19) 29... exf3 (29... bxa6 $2 30. Bxe4 Be6 31. d5 $18) 30. gxf3 Bh6 $19 (30... bxa6 $2 31. Qe2 $19)) (28. Bc4+ $18 Be6 29. Qg4 (29. bxa6 $2 Bxc4 30. Rxc4 f3 $19)) 28... Qxh3 $2 {[%emt 0:00:35][%mdl 8192]} (28... f3 $1 $11 {and Black is okay.} 29. Bf1 axb5) 29. Bc4+ {[%emt 0:00:57]} Kh8 $2 {[%emt 0:00:21] [#]} (29... Kh7 30. Qe2 f3) 30. Rc2 $1 {[%emt 0:01:04] Rh2 is the strong threat.} Bh6 {[%emt 0:01:30]} 31. Rh2 {[%emt 0:01:46]} (31. bxa6 {gets mated.} f3 32. Qe1 e3) 31... Qe3+ {[%emt 0:04:24]} 32. Kh1 {[%emt 0:01:20]} Rf6 {[%emt 0:00:23]} 33. Qg4 {[%emt 0:01:37][%csl Gc4][%cal Rg4g8]} Qe1+ {[%emt 0:00:50]} 34. Qg1 {[%emt 0:00:43]} Qxg1+ {[%emt 0:00:25]} 35. Kxg1 {[%emt 0:00:06]} axb5 {[%emt 0:00:07]} 36. Bxb5 {[%emt 0:00:22]} Kg7 {[%emt 0:01:23]} 37. Nd2 {[%emt 0:03:52]} f3 {[%emt 0:00:29][%cal Of3f2]} 38. Nxe4 {[%emt 0:01:21]} Be3+ {[%emt 0:00:07]} 39. Kf1 {[%emt 0:00:24]} Rg6 {[%emt 0:00:13][%csl Ge3][%cal Rg6g1] [#]} 40. Ke1 {[%emt 0:00:51]} Bxd4 {[%emt 0:00:23]} 41. Rh3 {[%emt 0:00:48]} Re6 {[%emt 0:01:21]} 42. Bd3 {[%emt 0:00:41]} Bxc5 {[%emt 0:01:01]} 43. Rxf3 $2 {[%emt 0:00:34]} (43. Rg3+ $18 {has better winning chances.} Kh6 44. Kf1 (44. Rxf3 Bb4+ 45. Ke2 Bxa5 $18)) 43... Bb4+ $16 {[%emt 0:00:15] White is better.} 44. Kd1 {[%emt 0:00:23]} Bxa5 {[%emt 0:00:18]} 45. Rg3+ {[%emt 0:00:32]} Rg6 {[%emt 0:02:03] Weighted Error Value: White=0.67/Black=0.73.  Loses game:     	---       	Black=2      Missed win:     	White=2     	---        Mistake:       	White=6     	Black=7      Inaccurate:     	---       	Black=2      OK:         	White=5     	Black=9      Best:        	White=4     	Black=1      Strong:       	White=1     	---} 1/2-1/2